bitfinex-derivatives/quotes_ETHF0:USTF0_20250903
["timestamp","ask_amount","ask_price","bid_price","bid_amount"]
[1756915341543,0.6834,4481.6,4481.5,0.1986]
[1756915342549,0.6834,4481.6,4481.5,0.4908]
[1756915343049,0.6834,4481.3,4481.2,0.2922]
[1756915343241,0.2049,4481.3,4481.2,0.6832]
[1756915344048,0.2849,4482.2,4481.3,0.2922]
[1756915344747,3.2078,4481.9,4481.3,0.2922]
[1756915344949,3.2078,4481.9,4481.8,0.6832]
[1756915345147,3.4127,4481.9,4481.8,0.6832]
[1756915345347,3.8912,4481.9,4481.8,0.6832]
[1756915345552,3.6063,4481.9,4481.5,0.123]
[1756915345741,0.6834,4481.7,4481.6,0.4908]
[1756915345947,0.6834,4481.7,4481.1,1.171]
[1756915346146,0.6834,4481.2,4481.1,1.171]
[1756915346354,0.2849,4481.1,4480.8,0.2922]
[1756915346747,0.6834,4480.9,4480.8,0.2922]
[1756915347145,4.0,4480.9,4480.0,0.17506077]
[1756915347353,0.3985,4480.1,4480.0,0.8062]
[1756915347850,0.22319,4480.9,4480.1,0.2922]
[1756915347851,0.2849,4480.9,4480.1,0.2922]
[1756915348052,0.8804,4480.8,4480.7,0.4908]
[1756915348248,0.3985,4480.8,4480.7,0.6832]
[1756915348450,0.2049,4480.3,4480.2,0.4908]
[1756915348646,3.4378,4481.3,4480.2,0.6832]
[1756915348847,0.3985,4481.2,4481.1,0.6832]
[1756915349154,0.2049,4481.2,4481.1,0.6832]
[1756915349353,0.2849,4481.6,4481.1,0.391]
[1756915349748,0.2849,4481.6,4481.2,0.2922]
[1756915349948,0.6834,4481.6,4481.5,0.4908]
[1756915350151,0.4025,4481.5,4481.2,1.485]
[1756915350353,0.6834,4481.3,4481.2,1.485]
[1756915350650,0.6834,4481.3,4481.2,1.6836]
[1756915350846,0.3985,4481.3,4481.2,1.876]
[1756915351066,0.6834,4481.3,4481.2,1.6836]
[1756915351258,0.3985,4481.3,4481.2,1.876]
[1756915351854,0.6834,4481.3,4481.2,1.876]
[1756915352256,0.6834,4481.3,4481.2,1.1928]
[1756915352644,0.6834,4481.3,4481.2,1.6836]
[1756915353557,0.6834,4481.3,4481.2,1.1928]
[1756915353956,5.68576999,4481.3,4480.2,0.2922]
[1756915354157,0.2049,4480.3,4480.2,0.6832]
[1756915354455,3.2078,4481.3,4480.7,0.391]
[1756915354650,3.4127,4481.3,4481.2,0.6832]
[1756915354954,3.2078,4481.3,4481.2,0.6832]
[1756915355152,0.2849,4481.6,4481.2,0.6832]
[1756915355355,0.2049,4481.3,4481.2,0.6832]
[1756915355957,3.8912,4481.3,4481.2,0.6832]
[1756915356148,3.8912,4481.3,4481.2,0.4908]
[1756915356749,0.2849,4480.9,4480.6,0.2922]
[1756915356953,0.3985,4480.7,4480.6,0.4908]
[1756915357147,0.3985,4480.7,4480.1,0.2922]
[1756915357148,3.8912,4480.7,4480.1,0.2922]
[1756915357547,3.8912,4480.7,4480.2,1.0314]
[1756915357752,3.8912,4480.7,4480.3,0.2922]
[1756915357753,0.2849,4480.6,4480.3,0.2922]
[1756915357954,0.6834,4480.4,4480.3,0.6832]
[1756915358153,3.2078,4480.7,4480.5,0.123]
[1756915358350,3.2078,4480.7,4480.6,0.6832]
[1756915358556,3.2078,4481.3,4480.6,0.391]
[1756915358855,3.2078,4481.3,4480.7,0.2922]
[1756915359060,3.8912,4481.3,4481.2,0.1986]
[1756915359259,3.6063,4481.3,4481.2,0.6832]
[1756915361158,3.8912,4481.3,4481.2,0.6832]
[1756915362957,3.8912,4481.3,4481.2,0.1986]
[1756915363660,3.8912,4481.3,4480.8,0.3037]
[1756915363661,3.6063,4481.3,4480.6,0.63163]
[1756915363861,0.2025,4480.8,4480.7,0.683]
[1756915364454,0.6838,4480.8,4480.7,0.683]
[1756915365462,0.4007,4480.5,4480.4,0.4928]
[1756915365650,0.6838,4480.5,4480.4,0.4928]
[1756915366051,0.6838,4480.5,4480.4,0.1891]
[1756915366253,0.2831,4480.4,4480.2,1.3351]
[1756915366458,0.4007,4480.3,4480.2,1.7144]
[1756915366658,0.4007,4480.3,4480.2,0.683]
[1756915366857,0.6838,4480.3,4480.2,0.683]
[1756915367359,0.4007,4480.3,4480.2,0.683]
[1756915367568,0.2025,4480.3,4480.2,0.683]
[1756915367767,0.4007,4480.4,4480.3,0.683]
[1756915368264,0.6838,4480.4,4480.3,0.683]
[1756915368464,0.6838,4480.4,4480.3,0.4928]
[1756915368660,0.6838,4480.4,4480.3,0.1891]
[1756915368857,0.75368262,4480.4,4480.3,0.1891]
[1756915369165,0.6838,4480.4,4480.3,0.683]
[1756915370158,0.4007,4480.4,4480.3,0.683]
[1756915370364,0.6838,4480.4,4480.1,0.8484]
[1756915370562,0.4007,4480.2,4480.1,0.8484]
[1756915370761,3.8916,4480.2,4480.1,0.8484]
[1756915370957,3.8916,4480.2,4480.1,1.3412]
[1756915371362,3.8916,4480.2,4480.1,0.8484]
[1756915371863,4.4426989,4480.2,4480.1,0.8484]
[1756915372361,3.8916,4480.2,4480.1,0.8484]
[1756915372562,4.44260582,4480.2,4480.1,0.8484]
[1756915374262,3.8916,4480.2,4480.1,1.3412]
[1756915374468,4.44250202,4480.2,4480.1,1.3412]
[1756915375171,3.8916,4480.2,4480.1,1.3412]
[1756915375372,4.44249443,4480.2,4480.1,1.3412]
[1756915375667,4.44249443,4480.2,4480.1,1.0375]
[1756915377975,4.44249443,4480.2,4480.1,0.8484]
[1756915378869,4.67249443,4480.2,4480.1,0.8484]
[1756915379071,4.1216,4480.2,4480.1,0.8484]
[1756915379468,4.67231681,4480.2,4480.1,0.8484]
[1756915381475,4.67231681,4480.2,4480.1,1.3412]
[1756915382071,4.67231681,4480.2,4480.1,1.0375]
[1756915382271,4.67231681,4480.2,4480.1,0.8484]
[1756915382670,4.44231681,4480.2,4480.1,0.8484]
[1756915382870,4.67231681,4480.2,4480.1,0.8484]
[1756915385076,4.67231681,4480.2,4480.1,1.3412]
[1756915385279,4.67231681,4480.2,4480.1,1.5314]
[1756915385976,4.67231681,4480.2,4480.1,0.8484]
[1756915386776,4.67231681,4480.2,4477.9,2.9895084]
[1756915386971,3.2078,4479.6,4479.5,0.4269]
[1756915387175,3.98851681,4479.6,4479.5,0.616]
[1756915387479,3.98851681,4479.6,4479.5,0.8062]
[1756915387480,3.2078,4479.6,4479.5,0.8062]
[1756915387868,0.23,4480.1,4480.0,0.1232]
[1756915387869,3.2078,4480.1,4480.0,0.1232]
[1756915388065,3.2078,4480.1,4480.0,0.8062]
[1756915388666,3.2078,4480.1,4480.0,0.4269]
[1756915388870,3.2078,4480.1,4480.0,0.616]
[1756915389071,3.2078,4480.1,4480.0,0.4269]
[1756915389869,3.2078,4480.1,4480.0,0.616]
[1756915390065,3.2078,4480.1,4480.0,0.4269]
[1756915390571,3.2078,4480.1,4480.0,0.616]
[1756915391276,3.2078,4480.1,4480.0,0.4269]
[1756915391478,3.76213133,4480.1,4480.0,0.4269]
[1756915391772,3.76213133,4480.1,4479.6,1.9326]
[1756915391773,0.0037,4479.7,4479.6,1.9326]
[1756915391975,0.78808848,4479.7,4479.6,1.9326]
[1756915392175,0.78808848,4479.7,4479.0,0.1232]
[1756915392365,3.2106,4479.1,4479.0,0.608]
[1756915392571,3.2106,4479.1,4479.0,0.8037]
[1756915393576,3.2115,4479.1,4478.5,0.1232]
[1756915393896,0.0028,4478.6,4478.5,0.4158]
[1756915394470,3.212,4478.6,4478.5,0.4158]
[1756915394678,3.76243386,4478.6,4478.2,0.2926]
[1756915394878,0.0046,4478.3,4478.2,0.2926]
[1756915395278,0.236,4478.3,4478.2,0.2926]
[1756915395481,1.93349502,4478.3,4478.2,0.2926]
[1756915395778,1.93349502,4478.3,4478.1,2.1636]
[1756915395779,0.006,4478.2,4478.1,2.1636]
[1756915395978,0.55919283,4478.2,4478.1,2.6484]
[1756915396280,0.55919283,4478.2,4478.1,1.3921]
[1756915396470,0.79059283,4478.2,4478.1,1.3921]
[1756915396675,0.79059283,4478.2,4478.1,1.0995]
[1756915397179,0.236,4478.2,4477.6,0.2926]
[1756915397375,0.0046,4477.7,4477.6,0.4848]
[1756915398077,0.23,4477.7,4477.6,0.6805]
[1756915398284,3.2101,4477.8,4477.7,0.6805]
[1756915398474,3.2078,4477.8,4477.7,0.6805]
[1756915398869,0.23,4478.3,4478.0,0.1134]
[1756915399070,0.2323,4478.4,4478.3,0.1922]
[1756915399276,0.78808538,4478.4,4478.3,0.2926]
[1756915399478,0.78948538,4478.4,4478.3,0.2926]
[1756915399679,0.78808538,4478.4,4478.3,0.6805]
[1756915399974,0.2323,4478.4,4478.3,0.6805]
[1756915400177,0.236,4478.4,4478.3,0.2926]
[1756915400377,0.78942255,4478.4,4478.0,1.0794]
[1756915400578,0.0046,4478.1,4478.0,1.372]
[1756915400982,0.0046,4478.1,4478.0,1.5642]
[1756915401688,4.55937223,4478.1,4478.0,1.0794]
[1756915401885,4.55937223,4478.1,4478.0,1.372]
[1756915402385,0.78797223,4478.1,4478.0,1.372]
[1756915402582,0.78797223,4478.1,4477.5,0.1134]
[1756915402782,0.0046,4477.6,4477.5,0.3056]
[1756915402973,0.0046,4477.6,4477.5,0.5013]
[1756915403173,0.0046,4477.6,4477.5,0.7939]
[1756915403684,0.2346,4477.6,4477.5,0.7939]
[1756915404879,0.2323,4477.6,4477.5,0.7939]
[1756915405889,0.23,4477.6,4477.5,0.7939]
[1756915406183,0.2323,4477.6,4477.5,0.7939]
[1756915407381,0.1134,4477.5,4475.5,3.6138]
[1756915407575,0.397,4475.7,4475.6,0.6805]
[1756915407779,0.627,4475.7,4475.6,0.6805]
[1756915407975,0.75548668,4475.7,4475.6,0.6805]
[1756915408176,0.4335,4475.7,4475.6,0.6805]
[1756915408378,0.628,4475.7,4475.6,0.2926]
[1756915408582,0.628,4475.7,4475.6,0.4848]
[1756915409486,0.628,4475.7,4475.6,0.6805]
[1756915410090,0.397,4475.7,4475.6,0.6805]
[1756915410482,3.2078,4475.8,4475.5,0.1134]
[1756915410785,0.2025,4475.6,4475.5,0.3056]
[1756915410982,0.231,4475.7,4475.5,0.5013]
[1756915411182,0.231,4475.7,4475.6,0.2926]
[1756915411486,3.2078,4475.8,4475.6,0.3879]
[1756915411689,3.2078,4475.8,4475.7,0.6805]
[1756915412684,3.3899396,4475.8,4475.7,0.6805]
[1756915412978,3.2078,4475.8,4475.7,0.6805]
[1756915413179,3.78692766,4475.8,4475.6,0.2926]
[1756915413489,0.628,4475.7,4475.6,0.6805]
[1756915414387,0.81007559,4475.7,4475.6,0.6805]
[1756915415089,0.81007559,4475.7,4475.6,0.4848]
[1756915415694,0.2268,4475.6,4475.3,0.2926]
[1756915415879,3.2078,4475.8,4475.3,0.4848]
[1756915415880,0.397,4475.4,4475.3,0.4848]
[1756915416987,0.397,4475.4,4475.3,0.6805]
[1756915417391,3.2078,4475.8,4475.5,0.1134]
[1756915417682,0.397,4475.6,4475.5,0.3056]
[1756915417883,0.57906853,4475.6,4475.5,0.3056]
[1756915418085,0.57906853,4475.6,4475.5,0.5982]
[1756915418688,0.57906853,4475.6,4475.5,0.7939]
[1756915420192,1.35811382,4475.6,4475.5,0.2926]
[1756915420395,1.13131382,4475.6,4475.5,0.5982]
[1756915420693,1.36231382,4475.6,4475.5,0.5982]
[1756915421282,1.58911382,4475.6,4475.5,0.2926]
[1756915422396,1.58911382,4475.6,4475.5,0.4848]
[1756915422798,1.58911382,4475.6,4475.5,0.2926]
[1756915423395,0.3944,4475.2,4475.1,1.7619]
[1756915423691,0.3944,4475.2,4474.0,3.3212]
[1756915423692,0.2265,4475.1,4474.6,0.2882]
[1756915423997,3.6022,4474.7,4474.6,0.6852]
[1756915424186,3.78426853,4474.7,4474.6,0.6852]
[1756915425196,4.33763064,4474.7,4474.6,0.6852]
[1756915426287,3.62963064,4474.7,4474.6,0.6852]
[1756915426488,3.4388,4475.2,4475.0,0.0606]
[1756915426695,3.4388,4475.2,4475.1,0.6852]
[1756915426895,3.76102873,4475.2,4475.1,0.6852]
[1756915427497,3.2078,4475.2,4475.1,4.6852]
[1756915428289,3.8895,4475.2,4475.1,0.6852]
[1756915428892,3.8895,4475.2,4475.1,0.397]
[1756915428893,4.44292084,4475.2,4475.1,0.397]
[1756915429500,4.24692084,4475.2,4475.1,0.6852]
[1756915429795,3.76122084,4475.2,4475.1,0.6852]
[1756915430801,4.24692084,4475.2,4475.1,0.6852]
[1756915431105,1.201302,4476.1,4475.1,0.6852]
[1756915431106,3.2078,4475.7,4475.1,5.31078]
[1756915431302,3.4062,4475.7,4475.6,0.397]
[1756915431507,4.24764938,4475.7,4475.6,0.6852]
[1756915431794,3.6935,4475.7,4475.6,0.6852]
[1756915432001,3.8895,4475.7,4475.6,0.6852]
[1756915432198,3.8895,4475.7,4475.6,0.397]
[1756915432703,4.4439008,4475.7,4475.6,0.397]
[1756915433100,4.4439008,4475.7,4475.6,0.1959]
[1756915433500,0.6817,4475.3,4475.2,0.1959]
[1756915433701,1.4674041,4475.3,4474.8,0.2882]
[1756915433901,1.4674041,4475.3,4474.3,2.0076]
[1756915433902,0.6817,4474.4,4474.3,2.0076]
[1756915434207,0.6817,4474.4,4473.5,3.3212]
[1756915434208,1.2364041,4474.4,4473.7,0.2882]
[1756915434401,0.6817,4474.2,4474.1,0.1959]
[1756915434599,1.2364041,4474.2,4474.1,0.1959]
[1756915435093,1.2364041,4474.2,4473.7,0.2882]
[1756915435297,0.6817,4473.8,4473.7,0.397]
[1756915435498,1.23708793,4473.8,4473.7,0.397]
[1756915436303,1.23708793,4473.8,4473.7,0.1959]
[1756915436495,0.3944,4473.6,4473.5,0.1959]
[1756915436702,0.94978793,4473.6,4473.5,0.1959]
[1756915437206,0.8046,4473.5,4473.4,0.8038]
[1756915437406,1.35998793,4473.5,4473.4,0.9997]
[1756915437594,1.35998793,4473.5,4473.4,0.8038]
[1756915438199,0.1984,4473.4,4473.3,0.2011]
[1756915438498,1.41807312,4473.4,4473.3,0.397]
[1756915438693,1.41807312,4473.4,4473.3,0.1959]
[1756915439304,0.2873,4473.3,4473.2,0.8622]
[1756915439499,1.41807312,4473.3,4473.2,0.8622]
[1756915440203,1.64907312,4473.3,4473.2,0.8622]
[1756915441103,1.41807312,4473.3,4473.2,1.0581]
[1756915441313,1.64901652,4473.3,4473.2,0.8622]
[1756915441808,1.41801652,4473.3,4473.2,1.5474]
[1756915442307,1.41801652,4473.3,4473.2,1.2592]
[1756915442501,1.22201652,4473.3,4473.2,1.2592]
[1756915442710,0.55538793,4473.3,4473.2,1.5474]
[1756915443008,1.23708793,4473.3,4473.2,1.2592]
[1756915443610,1.23708793,4473.3,4473.2,1.5474]
[1756915444608,0.75378793,4473.3,4473.2,1.5474]
[1756915444910,1.23708793,4473.3,4473.2,1.5474]
[1756915445410,0.55538793,4473.3,4473.2,1.5474]
[1756915445609,0.1117,4473.5,4473.3,0.2882]
[1756915445812,0.1117,4473.5,4473.4,0.6852]
[1756915446208,0.399,4473.5,4473.4,0.6852]
[1756915446403,0.1117,4473.5,4473.4,0.6852]
[1756915446602,0.1117,4473.5,4473.4,4.6852]
[1756915447002,3.2078,4474.3,4473.5,1.00568]
[1756915447206,0.2873,4474.8,4474.2,0.6852]
[1756915447409,0.6817,4474.3,4474.2,0.397]
[1756915447608,0.4857,4473.5,4473.4,0.6852]
[1756915447824,3.2078,4473.8,4473.7,0.397]
[1756915448010,3.2078,4473.8,4473.7,4.68596949]
[1756915448509,3.2078,4473.8,4473.7,4.91696949]
[1756915448716,3.2078,4473.8,4473.7,8.91696949]
[1756915449411,3.2078,4473.8,4473.7,9.36287827]
[1756915449611,3.2078,4474.8,4473.8,0.40223]
[1756915449910,0.4857,4474.4,4474.3,0.6852]
[1756915450102,3.2078,4474.8,4474.3,0.397]
[1756915450308,1.0377152,4474.7,4474.6,0.6852]
[1756915450509,3.2078,4474.8,4474.7,0.2882]
[1756915450710,0.3944,4474.7,4474.6,0.397]
[1756915451113,0.1229,4474.0,4473.2,0.8622]
[1756915451310,0.3944,4473.7,4473.2,0.8622]
[1756915451505,0.1984,4473.3,4473.2,1.3463]
[1756915451719,0.4857,4473.3,4473.2,1.2592]
[1756915452017,0.4857,4473.3,4473.2,1.5507]
[1756915452508,0.4857,4473.3,4473.2,1.7817]
[1756915453113,3.3307,4474.0,4473.2,1.7817]
[1756915453424,0.3069,4473.8,4473.2,1.7817]
[1756915453609,0.6999,4473.3,4473.2,1.4902]
[1756915454412,0.3069,4473.5,4473.2,1.0932]
[1756915454616,0.3069,4473.5,4473.4,0.6886]
[1756915454815,0.5052,4473.5,4473.4,0.6886]
[1756915455016,3.6376,4474.0,4473.5,0.2915]
[1756915455321,1.05740765,4473.9,4473.8,0.3971]
[1756915455512,0.94520765,4473.9,4473.2,0.8622]
[1756915455816,0.5052,4473.3,4473.2,1.5508]
[1756915456016,0.5052,4473.3,4473.2,1.7818]
[1756915456220,0.5052,4473.3,4473.2,1.5508]
[1756915456410,0.5052,4473.3,4473.2,1.7818]
[1756915456611,0.5052,4473.3,4473.2,1.5508]
[1756915456810,0.5052,4473.9,4473.8,0.3971]
[1756915457013,1.05736617,4473.9,4473.8,0.6886]
[1756915457204,0.55216617,4473.9,4473.8,0.6886]
[1756915457404,0.3069,4474.9,4473.9,0.2915]
[1756915457618,3.3307,4475.0,4473.9,0.2915]
[1756915457619,1.25202069,4474.8,4474.7,0.6886]
[1756915457806,0.55212069,4474.8,4474.7,0.6886]
[1756915458009,3.3307,4475.0,4474.7,0.6886]
[1756915458209,3.5289,4475.5,4474.8,0.5225]
[1756915458410,3.5289,4475.5,4475.4,0.1947]
[1756915458605,4.58241056,4475.5,4474.7,0.2915]
[1756915458811,0.3069,4474.7,4474.5,0.231]
[1756915459117,0.1228,4474.5,4474.1,0.231]
[1756915459314,0.6999,4474.2,4474.1,0.6281]
[1756915460621,0.6999,4474.2,4474.1,0.3971]
[1756915460922,0.1228,4474.5,4474.4,0.3971]
[1756915461123,0.5158,4474.5,4474.4,0.3971]
[1756915461522,0.8227,4474.5,4474.4,0.3971]
[1756915462222,1.37529767,4474.5,4474.4,0.3971]
[1756915462521,0.3069,4474.4,4473.7,3.2078]
[1756915462717,0.6999,4473.7,4473.6,0.1947]
[1756915463017,0.393,4473.7,4473.2,3.2078]
[1756915463318,0.8227,4473.5,4473.4,0.231]
[1756915463525,0.8227,4473.5,4473.4,0.6281]
[1756915463825,0.6999,4473.5,4473.4,0.6886]
[1756915464020,0.1228,4474.0,4473.4,0.6886]
[1756915464227,3.2078,4474.3,4473.9,0.2915]
[1756915464424,0.94602067,4474.2,4474.1,0.1947]
[1756915464828,0.94602067,4474.2,4474.1,0.6886]
[1756915465029,1.25292067,4474.2,4474.1,0.6886]
[1756915465430,1.25292067,4474.2,4474.1,0.3971]
[1756915465826,0.55302067,4474.2,4474.1,0.6886]
[1756915466631,1.25292067,4474.2,4473.7,0.231]
[1756915466832,0.393,4473.9,4473.8,0.4257]
[1756915467027,3.2078,4474.3,4473.8,0.9196]
[1756915467229,0.85986144,4474.2,4474.1,0.6886]
[1756915467427,0.3069,4474.7,4474.6,0.6886]
[1756915467732,0.85985444,4474.7,4474.6,0.6886]
[1756915468324,3.2078,4475.4,4474.6,0.6886]
[1756915468530,0.85974982,4474.9,4474.5,0.63317]
[1756915468834,0.3069,4474.9,4474.8,0.6886]
[1756915469031,0.3069,4474.8,4474.3,4.73817827]
[1756915469331,0.3069,4474.7,4474.6,0.6886]
[1756915469529,0.5052,4474.7,4474.6,0.6886]
[1756915469730,0.5052,4474.7,4474.6,0.3971]
[1756915469926,0.5052,4474.7,4474.1,3.4993]
[1756915469927,0.6999,4474.7,4474.1,3.4993]
[1756915470129,0.3069,4474.2,4473.7,0.2915]
[1756915470432,0.5052,4473.9,4473.8,0.4257]
[1756915471430,0.5052,4473.9,4473.8,0.6281]
[1756915471626,0.5052,4473.9,4473.8,0.9196]
[1756915471932,0.1228,4474.5,4473.8,0.9196]
[1756915472136,0.86074047,4474.4,4473.9,0.2915]
[1756915472334,0.5052,4474.4,4474.3,0.6886]
[1756915472532,0.3069,4474.6,4474.4,0.2915]
[1756915472733,1.05914292,4474.5,4474.4,0.4862]
[1756915473040,1.37664292,4474.5,4474.4,0.1947]
[1756915473230,1.37664292,4474.5,4473.8,0.2915]
[1756915473537,0.5052,4474.0,4473.9,0.4257]
[1756915473737,0.5052,4474.0,4473.9,0.9196]
[1756915474039,0.1228,4474.5,4473.9,0.6281]
[1756915474232,0.3069,4474.3,4473.9,0.231]
[1756915474438,0.5052,4474.3,4474.2,0.3971]
[1756915474629,1.05932204,4474.3,4474.2,0.6886]
[1756915475340,0.1983,4474.8,4474.7,0.3971]
[1756915475537,0.6999,4474.8,4474.7,0.1947]
[1756915475737,1.25411093,4474.8,4474.4,0.231]
[1756915475937,0.5052,4474.5,4474.4,0.4257]
[1756915476835,1.37697779,4474.5,4474.4,0.4257]
[1756915477236,0.8227,4474.5,4474.4,0.4257]
[1756915477635,1.37694547,4474.5,4474.4,0.4257]
[1756915477943,0.3069,4474.2,4473.6,0.40226]
[1756915478140,0.5052,4473.8,4473.7,0.4257]
[1756915478343,0.6999,4473.8,4473.7,0.1947]
[1756915478844,0.393,4473.8,4473.6,0.7048]
[1756915479039,0.3069,4473.7,4473.6,0.7048]
[1756915479240,0.6999,4473.7,4473.6,0.7048]
[1756915479439,0.6999,4473.7,4473.6,0.8995]
[1756915480744,0.6999,4473.7,4473.6,1.1305]
[1756915480944,0.6999,4473.7,4473.6,0.9358]
[1756915481540,1.25427381,4473.7,4473.6,0.7048]
[1756915481845,1.25427381,4473.7,4473.6,0.9358]
[1756915482039,1.25427381,4473.7,4473.6,0.7048]
[1756915485737,4.46207381,4473.7,4473.6,0.7048]
[1756915485942,0.7065,4472.9,4472.8,0.16991404]
[1756915486143,1.26096731,4472.9,4472.8,0.16991404]
[1756915486751,0.409,4472.3,4472.2,0.231]
[1756915486945,0.55446731,4472.3,4471.7,3.2078]
[1756915487145,0.7065,4471.8,4471.7,3.6111]
[1756915487448,0.2975,4471.8,4471.7,4.1473]
[1756915487641,0.6137,4472.0,4471.9,0.7085]
[1756915487846,0.4986,4472.0,4471.9,0.7085]
[1756915488547,0.8216,4472.0,4471.9,0.4033]
[1756915490245,0.8216,4472.0,4471.9,0.7085]
[1756915490753,0.8216,4472.0,4471.9,0.2049]
[1756915491646,0.8216,4472.0,4471.6,36.64367827]
[1756915491848,0.5241,4472.0,4471.6,36.64367827]
[1756915492044,0.7065,4471.8,4471.7,0.4359]
[1756915492249,0.7065,4471.8,4471.7,0.6343]
[1756915492544,0.1151,4472.0,4471.7,0.9395]
[1756915492747,0.5241,4472.0,4471.9,0.2049]
[1756915493145,0.5241,4472.0,4471.9,0.4033]
[1756915493352,0.8216,4472.0,4471.9,0.4033]
[1756915493857,0.8216,4472.0,4471.5,1.879]
[1756915494063,0.7065,4471.7,4471.6,0.4359]
[1756915495157,0.7065,4471.7,4471.6,0.9395]
[1756915495158,0.4986,4471.7,4471.6,0.9395]
[1756915496258,0.2011,4471.9,4471.7,0.3052]
[1756915496463,0.4986,4471.8,4471.7,0.7085]
[1756915496960,0.4126,4472.0,4471.7,0.4033]
[1756915497159,0.7065,4471.9,4471.8,0.4033]
[1756915498163,0.2975,4471.8,4471.5,0.9647]
[1756915498357,0.7065,4471.6,4471.5,1.1696]
[1756915498660,0.7065,4471.6,4471.5,0.9647]
[1756915499962,0.7065,4471.6,4471.5,1.1696]
[1756915500157,0.7065,4471.6,4471.5,1.368]
[1756915500355,0.2975,4471.6,4471.5,1.6732]
[1756915500565,0.2975,4471.9,4471.6,0.3052]
[1756915500763,0.4986,4471.9,4471.8,0.7085]
[1756915501060,3.2078,4472.4,4471.8,0.7085]
[1756915501252,3.2078,4472.4,4471.7,4.44667827]
[1756915501253,3.2078,4472.4,4472.3,5.15517827]
[1756915501459,3.2078,4472.4,4472.3,5.38617827]
[1756915501659,3.4089,4472.4,4472.3,0.7085]
[1756915501866,3.9143,4472.4,4472.3,0.6343]
[1756915502370,3.9143,4472.4,4472.3,0.9395]
[1756915502556,0.7065,4472.4,4472.3,0.6343]
[1756915502957,0.2975,4472.9,4472.5,0.3052]
[1756915503163,0.7065,4472.9,4472.8,0.4033]
[1756915503360,0.7065,4472.9,4472.8,0.2049]
[1756915503966,0.7065,4472.9,4472.6,0.231]
[1756915504360,0.2975,4472.8,4472.6,0.231]
[1756915504557,0.1151,4473.5,4473.1,0.5101]
[1756915504772,0.2011,4473.2,4473.1,0.7085]
[1756915505364,3.2078,4473.7,4473.1,0.8056]
[1756915505668,3.9143,4473.7,4473.6,0.2049]
[1756915505866,0.7065,4473.7,4473.6,0.2049]
[1756915506062,0.7065,4473.7,4473.6,0.4033]
[1756915506266,0.8216,4473.5,4473.4,0.231]
[1756915506566,0.1151,4474.0,4473.4,0.6343]
[1756915506766,0.2011,4473.5,4473.4,0.6343]
[1756915506970,0.4986,4473.5,4473.4,0.9395]
[1756915508566,0.8216,4473.5,4473.4,0.6343]
[1756915508868,0.8216,4473.5,4473.4,0.4033]
[1756915509073,0.8216,4473.5,4473.4,0.9395]
[1756915509277,0.7065,4473.5,4473.4,0.9395]
[1756915509469,0.1151,4474.0,4473.4,0.9395]
[1756915509769,0.2011,4474.5,4474.4,0.4033]
[1756915509972,0.2011,4474.5,4474.4,0.9395]
[1756915510270,0.7065,4474.5,4474.4,0.6343]
[1756915510469,0.8216,4474.5,4474.4,0.4033]
[1756915510673,0.8216,4474.5,4474.4,0.6343]
[1756915512980,0.8216,4474.5,4474.4,0.9347]
[1756915513276,0.8216,4474.5,4474.3,4.00691169]
[1756915513478,0.8216,4474.5,4474.4,0.4329]
[1756915513873,3.2078,4474.9,4474.4,0.9326]
[1756915514067,3.6033,4474.9,4474.8,0.2019]
[1756915514677,3.9151,4474.9,4474.8,0.2019]
[1756915516780,3.6033,4474.9,4474.4,0.231]
[1756915517078,0.8263,4474.5,4474.4,0.6322]
[1756915517279,0.8263,4474.5,4474.4,0.9326]
[1756915518075,0.8263,4474.5,4474.4,0.2019]
[1756915518276,0.3955,4473.9,4473.8,0.4329]
[1756915518482,0.3118,4474.4,4473.8,0.9326]
[1756915518679,0.2041,4474.2,4474.1,0.4012]
[1756915518879,0.5159,4474.2,4474.1,0.7016]
[1756915519480,0.119,4474.5,4474.1,1.10381]
[1756915519677,0.6349,4474.5,4474.4,0.7016]
[1756915519878,0.5159,4474.5,4474.4,0.7016]
[1756915520177,0.5159,4474.5,4474.4,0.4012]
[1756915520178,0.8263,4474.5,4474.4,0.4012]
[1756915520489,0.8263,4474.5,4474.4,0.6322]
[1756915520976,0.8263,4474.5,4474.4,0.4329]
[1756915521175,0.8263,4474.5,4474.4,0.231]
[1756915521477,0.8263,4474.5,4474.4,0.4319]
[1756915521870,0.8263,4474.5,4474.4,0.6312]
[1756915522073,0.8263,4474.5,4474.4,0.9316]
[1756915522875,0.5145,4474.5,4474.0,4.00691169]
[1756915523084,0.119,4474.0,4473.8,3.2078]
[1756915523277,0.7073,4474.0,4473.9,0.9316]
[1756915523475,0.5159,4474.0,4473.9,1.33383]
[1756915524279,0.2159,4474.0,4473.9,1.33383]
[1756915524480,0.2041,4474.0,4473.9,0.9316]
[1756915524676,0.3955,4474.0,4473.9,0.9316]
[1756915524871,0.3955,4474.0,4473.9,0.7323]
[1756915525078,0.3955,4474.0,4473.9,0.4319]
[1756915525079,0.5145,4474.0,4473.9,0.4319]
[1756915525682,0.5145,4474.0,4473.9,0.2019]
[1756915525877,4.73802,4474.0,4472.7,0.3004]
[1756915526084,0.3955,4472.6,4472.5,1.4347]
[1756915526379,0.5159,4473.4,4473.3,0.4012]
[1756915526679,0.7073,4473.4,4473.3,4.93851169]
[1756915527271,3.2078,4473.7,4473.6,0.4012]
[1756915527476,3.2078,4473.7,4473.6,0.7016]
[1756915527683,0.3118,4473.9,4473.6,0.7016]